Cogmind - Beta 15 @@@ ROGUE MODE // 2025.05.16 @ 18:06:22 Player: Darcyisverycute Result: Destroyed by X-72 Disruptor with Improved Arc Projector Performance ------------- Evolutions (4) 2000 Regions Visited (4) 800 Robots Destroyed (88) 440 Value Destroyed (2737) 2737 Prototype IDs (18) 360 Alien Tech Used (0) 0 Bonus (900) 900 TOTAL SCORE: 7237 Bonus ------- High Alert Combat Kills 100 Registered with UFD 300 Met Optimus in HQ 500 Cogmind --------- Core Integrity 0/850 Matter 255/300 Energy 92/100 System Corruption 9% Temperature Cool (0) Movement Core (50) Location -6/Factory Parts ------- > --- POWER (2) -------- (None) > --- PROPULSION (4) --- (None) > --- UTILITY (7) ------ (None) > --- WEAPON (2) ------- (None) > --- INVENTORY (5) ---- Light Ion Engine Matter Compressor (250) Improved Proton Missile Launcher Long-range Missile Launcher DRS Beacon (Ready) Peak State ------------ > --- POWER ------------ Light Nuclear Core Micro Nuclear Core Light Antimatter Reactor > --- PROPULSION ------- Improved Medium Treads Carbon-fiber Leg Carbon-fiber Leg Overtuned Flexi-carbon Leg > --- UTILITY ---------- Scrap Suit Large Storage Unit Improved Sensor Array Advanced Signal Interpreter Advanced Melee Analysis Suite Improved System Restoration Module Rainbow Chip > --- WEAPON ----------- Companion Sword > --- INVENTORY -------- Spiked Treads Improved Terrain Scanner Transmission Jammer Advanced ECM Suite Reaction Control System Improved Light Armor Plating Improved Light Armor Plating Hacking Suite Improved System Shield Proton Missile Launcher Subdweller Shrapnel Launcher Long-range Missile Launcher CPS Tube CPS Tube DRS Beacon [Rating: 82] Favorites ----------- Power Ion Engine Engine Ion Engine Power Core Micro Nuclear Core Reactor Light Antimatter Reactor Propulsion Spiked Treads Treads Spiked Treads Leg Carbon-fiber Leg Utility Large Storage Unit Device Reaction Control System Storage Large Storage Unit Processor Advanced Melee Analysis Suite Protection Scrap Shield Weapon Assault Rifle Energy Gun Small Laser Ballistic Gun Assault Rifle Launcher Subdweller Shrapnel Launcher Special Weapon Mining Laser Slashing Weapon Companion Sword Build | -11 -10 -10 -8 -6 ------- Run | Yrd Mat Sub Scr Fac Slots Evolved 8 | . . . . 8 Power 1 | . . . . 1 Propulsion 2 | . . . . 2 Utility 5 | . . . . 5 Weapon . | . . . . . Parts Attached 72 | 8 2 11 6 45 Power 11 | 1 . 1 1 8 Engine 6 | 1 . 1 1 3 Core 4 | . . . . 4 Reactor 1 | . . . . 1 Propulsion 22 | 2 . 3 . 17 Treads 7 | 2 . 3 . 2 Leg 15 | . . . . 15 Wheel . | . . . . . Hover . | . . . . . Flight . | . . . . . Utility 29 | 2 2 2 4 19 Device 12 | 1 1 . 2 8 Storage 4 | 1 1 . 2 . Processor 5 | . . . . 5 Hackware . | . . . . . Protection 8 | . . 2 . 6 Artifact . | . . . . . Weapon 10 | 3 . 5 1 1 Energy Gun 3 | 2 . 1 . . Energy Cannon . | . . . . . Ballistic Gun 4 | 1 . 3 . . Ballistic Cannon . | . . . . . Launcher 1 | . . . . 1 Special Weapon 1 | . . 1 . . Impact Weapon . | . . . . . Slashing Weapon 1 | . . . 1 . Piercing Weapon . | . . . . . Special Melee Weapon . | . . . . . Unidentified Prototypes 1 | . . . 1 . Parts Lost 30 | . . 2 . 28 Power 8 | . . 1 . 7 Propulsion 11 | . . . . 11 Utility 10 | . . 1 . 9 Weapon 1 | . . . . 1 Highest Loss Streak 14 | . . 1 . 14 To Critical Strikes . | . . . . . Average Backups 9 | 2 12 7 8 12 Power . | . 1 . . . Propulsion 1 | 1 3 1 . 1 Utility 4 | . 6 3 4 6 Weapon 2 | . 1 2 2 2 Tool/Special . | . . . . . Unused Backups 22 | . 1 9 2 10 Power 1 | . . . . 1 Propulsion 4 | . . 3 . 1 Utility 13 | . 1 6 2 4 Weapon 3 | . . . . 3 Tool/Special 1 | . . . . 1 Average Slot Usage (%) 74 | . 100 88 60 74 Engine 7 | . 14 13 5 1 Core 1 | . . . . 7 Treads 22 | . 28 28 28 4 Leg 3 | . . . . 17 Device 10 | . 14 2 12 9 Storage 8 | . 14 3 11 5 Processor 3 | . . . . 15 Protection 3 | . . 10 . 3 Energy Gun 3 | . 14 4 . . Ballistic Gun 6 | . 14 21 . . Slashing Weapon 1 | . . . . 5 Peak Build Rating 82 | 9 10 15 21 82 Average Rating 23 | 6 9 12 11 68 On Entrance 9 | . 9 9 10 21 Naked Turns 7 | . . . . 7 Heaviest Build 62 | 12 27 31 30 62 Greatest Support 68 | 40 40 40 40 68 Greatest Overweight (x) 9 | . . . 1 9 Average Overweight (x) . | . . . . . Largest Inventory Capacity 15 | 8 15 15 15 15 Average Capacity 11 | 6 14 7 11 14 Most Carried 15 | 6 15 15 15 15 Average Carried 10 | 2 12 7 9 13 Final Capacity 15 | 8 15 5 15 5 Final Carried 15 | 6 15 5 15 5 Class Distribution -------------------- 75% | Mutant 15% | Scavenger-Mutant 4% | Derelict-Mutant Dominant Class ---------------- Mutant | -10/Materials Mutant | -10/Subcaves Mutant | -8/Scraptown Scavenger-Mutant | -6/Factory Resources | -11 -10 -10 -8 -6 ----------- Run | Yrd Mat Sub Scr Fac Matter Collected 1837 | 225 357 426 60 769 Remotely . | . . . . . Salvage Created 3678 | 113 651 537 . 2377 Parts 185 | 5 38 21 . 121 Haulers Intercepted 1 | . 1 . . . Recyclers Shooed 2 | . 1 . . 1 Parts Field Recycled . | . . . . . Retrieved Matter . | . . . . . Parts Self-Destructed 10 | . . 10 . . Prevented . | . . . . . Kills | -11 -10 -10 -8 -6 ------- Run | Yrd Mat Sub Scr Fac Combat Hostiles Destroyed 59 | . 11 13 . 35 Melee 35 | . . . . 35 Guns 24 | . 11 13 . . Classes Destroyed 14 | 2 6 3 . 3 Worker 15 | . 5 . . 10 Builder 3 | . . . . 3 Tunneler 2 | 1 . . . 1 Hauler 1 | . 1 . . . Recycler 3 | 1 1 . . 1 Operator 2 | . 1 . . 1 Watcher 3 | . 2 . . 1 Swarmer 11 | . 6 1 . 4 Grunt 30 | . 5 2 . 23 Sentry 3 | . . 1 . 2 Specialist 3 | . . . . 3 Programmer 3 | . . . . 3 Artisan 1 | . . 1 . . Subdweller 9 | . . 9 . . Best Kill Streak 7 | 1 7 2 . 4 Combat Bots Only 4 | . 3 2 . 4 Max Kills in Single Turn 2 | 1 2 1 . 1 Gunslinging . | . . . . . Exploded . | . . . . . Melee 1 | . . . . 1 Uniques/NPCs Destroyed . | . . . . . Combat | -11 -10 -10 -8 -6 -------- Run | Yrd Mat Sub Scr Fac Hostile Shots Fired 475 | . 27 71 . 377 Missed 123 | . 5 21 . 97 Hits 352 | . 22 50 . 280 Projectile 352 | . 22 50 . 280 Critical Strikes 15 | . . 2 . 13 Part Disruptions 3 | . . . . 3 Damage Taken 5834 | . 215 1063 . 4556 Core 1069 | . 47 159 . 863 Absorbed by Shields . | . . . . . Redirected to Shielding 12 | . . 12 . . Ignored by Resistances 79 | . . . . 79 Regen/Repaired (Parts) 10 | . . . . 10 Core Remaining (%) 58 | 100 . . 17 . Volleys Fired 129 | 7 40 80 . 2 Largest 2 | 2 2 2 . 1 Hottest 120 | 60 60 120 . 40 Shots Fired 225 | 14 76 133 . 2 Gun 210 | 14 76 120 . . Cannon . | . . . . . Launcher 2 | . . . . 2 Special 13 | . . 13 . . Kinetic 146 | 7 40 97 . 2 Thermal 79 | 7 36 36 . . Explosive . | . . . . . Electromagnetic . | . . . . . Robot Hit Streak 12 | 6 6 12 . . Robot Miss Streak 4 | 2 4 2 . . Penetration Max . | . . . . . Secondary Targets 3 | . 3 . . . Max Gunslinging Chain 1 | . 1 . . . Shots Hit Robots 293 | 10 45 75 . 163 Core Hits 120 | 3 30 26 . 61 Critical Kills 1 | . . 1 . . Critical Parts Destroyed . | . . . . . Critical Strikes 3 | . . 1 . 2 Destroy 1 | . . 1 . . Melee Attacks 207 | . . . . 207 Impact . | . . . . . Slashing 207 | . . . . 207 Piercing . | . . . . . Sneak Attacks 22 | . . . . 22 Combat Hostiles 3 | . . . . 3 Follow-up Attacks 1 | . . . . 1 Damage Inflicted 9938 | 120 605 1248 . 7965 Guns 1973 | 120 605 1248 . . Cannons . | . . . . . Explosions 76 | . . . . 76 Melee 7881 | . . . . 7881 Ramming 8 | . . . . 8 Kinetic 1494 | 75 319 1024 . 76 Thermal 555 | 45 286 224 . . Explosive . | . . . . . Electromagnetic . | . . . . . Impact . | . . . . . Slashing 7881 | . . . . 7881 Piercing . | . . . . . Highest Corruption 9 | . . . . 9 Average Corruption 2 | . . . . 2 Corruption Purged 1 | . . . . 1 Corruption Blocked . | . . . . . Effects 18 | . . . . 18 Message Errors 7 | . . . . 7 Matter Fused 3 | . . . . 3 Energy Discharges 3 | . . . . 3 Parts Rejected 3 | . . . . 3 Data Loss (major) 2 | . . . . 2 Overload Shots . | . . . . . Overflow Damage 645 | . . . . 645 Projectiles . | . . . . . Explosions . | . . . . . Melee 645 | . . . . 645 Knockbacks . | . . . . . Impact . | . . . . . Kinetic . | . . . . . Secondary . | . . . . . Self-Inflicted Damage . | . . . . . Shots . | . . . . . Rammed . | . . . . . Targets Rammed 2 | . . . . 2 Kicked 2 | . . . . 2 Crushed . | . . . . . Highest Temperature 245 | . 27 245 . 33 Average Temperature 26 | . 17 143 . 10 Received Heat Transfer 2052 | . 72 536 . 1444 Siege Activations . | . . . . . Martial Activations . | . . . . . Shielding Activations . | . . . . . Robots Disrupted . | . . . . . Combat Hostiles . | . . . . . Robots Corrupted . | . . . . . Combat Hostiles . | . . . . . Parts Fried . | . . . . . Impact Corruptions . | . . . . . Robots Melted . | . . . . . Combat Hostiles . | . . . . . Parts Melted 3 | . . 1 . 2 Heat Transferred 1075 | 100 625 350 . . Parts Sabotaged . | . . . . . Parts Stolen . | . . . . . Parts Stripped . | . . . . . Power Chain Reactions . | . . . . . Alert | -11 -10 -10 -8 -6 ------- Run | Yrd Mat Sub Scr Fac Maximum Alert Level 2 | . . . . 2 Low Security (%) 77 | 100 100 . . 62 Level 1 16 | . . . . 26 Level 2 6 | . . . . 10 Level 3 . | . . . . . Level 4 . | . . . . . Level 5 . | . . . . . High Security . | . . . . . Max Security . | . . . . . Peak Influence 470 | 5 86 . . 470 Initial . | . . . . . Average 121 | . 24 . . 184 Influence Increases 1762 | 10 369 145 . 1238 Destroy 0b10 Robot/C 1000 | . 220 80 . 700 Destroy 0b10 Robot/NC 145 | 10 50 . . 85 Destroy Leader 228 | . 56 20 . 152 Successful Hack 28 | . 12 . . 16 Disable Machine 30 | . . . . 30 Destroy Structure 46 | . 1 . . 45 Lose Combat Pursuer 285 | . 30 45 . 210 Influence Decreases 1358 | 10 369 145 . 834 Time Decay 1042 | 10 343 135 . 554 Lost Part 290 | . . 10 . 280 Purge Threat 26 | . 26 . . . Squads Dispatched 13 | . 2 . . 11 Investigation 5 | . 1 . . 4 Extermination 2 | . . . . 2 Reinforcement 3 | . 1 . . 2 Assault . | . . . . . Garrison 3 | . . . . 3 Intercept . | . . . . . Searches Triggered . | . . . . . Construction Impeded . | . . . . . Haulers Reinforced . | . . . . . Active Scanning Responses . | . . . . . Cargo Convoy Interrupts 1 | . . . . 1 Stealth | -11 -10 -10 -8 -6 --------- Run | Yrd Mat Sub Scr Fac Distress Signals 4 | . 3 . . 1 Communications Jammed . | . . . . . Distress Signals . | . . . . . Times Spotted 104 | . 19 14 . 71 Peak Tracking Total 8 | . 3 5 . 8 Tactical Retreats 14 | . 2 1 . 11 Traps | -11 -10 -10 -8 -6 ------- Run | Yrd Mat Sub Scr Fac Traps Triggered 4 | . 1 1 . 2 Indirectly . | . . . . . Trap Hack Attempts . | . . . . . Triggered . | . . . . . Disarmed . | . . . . . Reprogrammed . | . . . . . Reused . | . . . . . Traps Extracted . | . . . . . Installed . | . . . . . Triggered . | . . . . . Machines | -11 -10 -10 -8 -6 ---------- Run | Yrd Mat Sub Scr Fac Machines Disabled 3 | . . 1 . 2 Max in Single Turn 1 | . . 1 . 1 Garrison Access 1 | . . . . 1 Machines Repaired . | . . . . . Machines Dismantled . | . . . . . Machines Sabotaged . | . . . . . Overloaded Fab Kills . | . . . . . Hacking | -11 -10 -10 -8 -6 --------- Run | Yrd Mat Sub Scr Fac Machines Accessed 16 | . 4 1 3 8 Terminals 7 | . 4 . . 3 Fabricators 1 | . . . . 1 Repair Stations . | . . . . . Recycling Units 3 | . . . . 3 Scanalyzers . | . . . . . Garrison Access 1 | . . . . 1 Total Hacks 37 | . 11 1 11 14 Successful 25 | . 6 1 11 7 Failed 12 | . 5 . . 7 Catastrophic 2 | . 1 . . 1 Database Lockouts . | . . . . . Manual 19 | . 8 . . 11 Terminals 18 | . 11 . . 7 Fabricators 1 | . . . . 1 Repair Stations . | . . . . . Recycling Units 5 | . . . . 5 Scanalyzers . | . . . . . Garrison Access 1 | . . . . 1 Terminal Hacks 19 | . 5 1 11 2 Record 1 | . . . 1 . Part Schematic 2 | . 1 . . 1 Robot Analysis 10 | . 2 . 8 . Open Door 1 | . . . 1 . Branch Access Points 1 | . . . . 1 Unreport Threat 1 | . 1 . . . Locate Traps 1 | . 1 . . . Proto ID Catalog 2 | . . 1 1 . Fabricator Hacks . | . . . . . Repair Station Hacks . | . . . . . Recycling Unit Hacks . | . . . . . Scanalyzer . | . . . . . Garrison Access Hacks 1 | . . . . 1 Seal Access 1 | . . . . 1 Unauthorized Hacks 5 | . 1 . . 4 Terminals 2 | . 1 . . 1 Botnet 2 | . 1 . . 1 Fabricators . | . . . . . Repair Stations . | . . . . . Recycling Units 3 | . . . . 3 Fedlink 3 | . . . . 3 Scanalyzers . | . . . . . Garrison Access . | . . . . . Data Cores Recovered 1 | . 1 . . . Used . | . . . . . Hacking Detections 10 | . 4 . . 6 Full Trace Events 1 | . . . . 1 Feedback Events . | . . . . . Feedback Blocked . | . . . . . Robot Schematics Acquired . | . . . . . Robots Built . | . . . . . Authchips . | . . . . . Time . | . . . . . Total Robot Build Rating . | . . . . . Part Schematics Acquired 2 | . 1 . . 1 Parts Built . | . . . . . Authchips . | . . . . . Time . | . . . . . Total Part Build Rating . | . . . . . Parts Repaired . | . . . . . Time . | . . . . . Parts Recycled . | . . . . . Recycled Matter . | . . . . . Retrieved Matter . | . . . . . Retrieved Components . | . . . . . Parts Scanalyzed . | . . . . . Part Schematics Acquired . | . . . . . Parts Damaged . | . . . . . Bothacking | -11 -10 -10 -8 -6 ------------ Run | Yrd Mat Sub Scr Fac Used RIF Installer . | . . . . . Robots Hacked . | . . . . . Non-combat . | . . . . . Combat . | . . . . . Robot Hacks Applied . | . . . . . Relay Couplers Released . | . . . . . Fabnet Peak Effective % . | . . . . . Robots Rewired . | . . . . . Allies Hacked . | . . . . . Hacks Repelled . | . . . . . Allies | -11 -10 -10 -8 -6 -------- Run | Yrd Mat Sub Scr Fac Total Allies . | . . . . . Largest Group . | . . . . . Highest-Rated Group . | . . . . . Highest-Rated Ally . | . . . . . Total Orders . | . . . . . Ally Attacks . | . . . . . Total Damage . | . . . . . Kills . | . . . . . Allies Corrupted . | . . . . . Allies Melted . | . . . . . Intel | -11 -10 -10 -8 -6 ------- Run | Yrd Mat Sub Scr Fac Active Infowar (turns) 2899 | 42 1142 358 209 1148 Sensors 974 | . . . 209 765 Terrain 1707 | 42 1140 127 . 398 Seismic 233 | . 2 231 . . Jamming 118 | . . . . 118 ECM 124 | . . . . 124 Robot Analysis Total 10 | . 2 . 8 . Derelict Logs Recovered 3 | . . 1 2 . Drone Launches . | . . . . . Drone Recoveries . | . . . . . Exploration | -11 -10 -10 -8 -6 ------------- Run | Yrd Mat Sub Scr Fac Turns Passed 8875 | 118 1142 1930 3729 1956 Spaces Moved 4763 | 52 513 1001 2157 1040 Core 143 | 4 . . 123 16 Treads 3596 | 48 513 1001 2034 . Legs 1024 | . . . . 1024 Wheels . | . . . . . Hover . | . . . . . Flight . | . . . . . Fastest Speed 50 | 50 160 160 50 50 Average Speed 156 | 151 160 160 170 120 Slowest Speed 500 | 160 160 160 260 500 Overloaded Moves . | . . . . . Propulsion Burnouts . | . . . . . Robots Hopped . | . . . . . Potential Cave-ins . | . . . . . Cave-ins Triggered . | . . . . . Exploration Rate (%) 53 | 5 87 66 89 21 Regions Visited 4 Branch Regions 2 Pre-discovered Areas 5 | . . 2 2 1 Known Exits Taken . | . . . . . Unknown Exits Taken 4 | 1 1 1 1 . Scrap Searched 12 | . . 3 9 . Spaces Dug 20 | . . . . 20 Terrain Destroyed 44 | . . . . 44 Melee 20 | . . . . 20 Projectile . | . . . . . AOE 24 | . . . . 24 Terrain Rammed . | . . . . . Walls Destroyed . | . . . . . Machines Disabled . | . . . . . Actions | -11 -10 -10 -8 -6 --------- Run | Yrd Mat Sub Scr Fac Total 5639 | 73 759 1167 2203 1437 Wait 337 | 1 193 49 14 80 Move 4759 | 51 512 1000 2156 1040 Hop . | . . . . . Pick Up 59 | 6 10 7 15 21 Fast Attach 39 | 7 . 1 5 26 Attach 20 | . . 1 1 18 Detach 9 | . . . . 9 Swap 31 | 1 2 12 1 15 Drop 41 | . 2 10 11 18 Fire 129 | 7 40 80 . 2 Melee 206 | . . . . 206 Ram . | . . . . . Kick 2 | . . . . 2 Crush . | . . . . . Escape Stasis . | . . . . . Rewire . | . . . . . Trap . | . . . . . Miscellaneous 7 | . . 7 . . Route ------- -11/Scrapyard -10/Materials (discovered 4 exits: [*Mat x2] / [*Min] / *Sub) -10/Subcaves (discovered 3 exits: [*Mat x2] / *Scr) -8/Scraptown (discovered 2 exits: *Fac x2) -6/Factory (discovered 2 exits: *Low x2) History --------- Turn | Location | Event 10 | -11/Scrapyard | Discovered new exit (range 15) 119 | -11/Scrapyard | Entered Materials 201 | -10/Materials | Discovered new exit (range 15) 308 | -10/Materials | Build established: Mutant 381 | -10/Materials | Discovered new exit (range 13) 816 | -10/Materials | Discovered new exit (range 9) 1209 | -10/Materials | Discovered new exit (range 7) 1261 | -10/Materials | Entered Subcaves 1262 | -10/Subcaves | A swath of the cavern ceiling suddenly collapsed 1262 | -10/Subcaves | Approached by a straggling Scientist 1305 | -10/Subcaves | Discovered new exit (range 16) 1426 | -10/Subcaves | Visited 4L-MR0's lab 1441 | -10/Subcaves | Found Rainbow Chip 1578 | -10/Subcaves | Learned location of Zion (-6) 1578 | -10/Subcaves | Met a Zionite searching for "candidates" 1744 | -10/Subcaves | Shifting Twisted Machinery released Sub. Machine Gun 1771 | -10/Subcaves | Shifting Twisted Machinery released Scrap Shield 1816 | -10/Subcaves | Shifting Twisted Machinery released Mak. Light Armor Plating 1818 | -10/Subcaves | Shifting Twisted Machinery released Sub. Shrapnel Launcher 1822 | -10/Subcaves | Discovered new exit (range 10) 2574 | -10/Subcaves | Shifting Twisted Machinery released Sub. Laser 3134 | -10/Subcaves | Core integrity fell below 50% 3144 | -10/Subcaves | Core integrity fell below 20% 3170 | -10/Subcaves | Scientist uncovered a shortcut to Scraptown 3191 | -10/Subcaves | Entered Scraptown 3315 | -8/Scraptown | Heard Great Nut preacher, LISTEN AND RECITE! 3370 | -8/Scraptown | Scanned Subdweller tech in exchange for log data 3375 | -8/Scraptown | Learned location of Warlord (-4) 3398 | -8/Scraptown | Discovered new exit (range 7) 3829 | -8/Scraptown | Visited UFD Registry 3829 | -8/Scraptown | Registered with UFD as "Technocell" 3837 | -8/Scraptown | Visited Fellowship of the Rings 3846 | -8/Scraptown | Visited SPCMW 3857 | -8/Scraptown | Visited Shadow of the Wyrm 3870 | -8/Scraptown | Visited Bundlers 4324 | -8/Scraptown | Visited Curators Association 4350 | -8/Scraptown | Visited Science Guys 4404 | -8/Scraptown | Visited Scrapoid Pod Storage 4430 | -8/Scraptown | Visited Supply Room 4460 | -8/Scraptown | Visited Research Penetration Think Tank 4572 | -8/Scraptown | Visited Analyses Database 4608 | -8/Scraptown | Visited Botcube Research 4657 | -8/Scraptown | Visited Derelict Rescue Squad 4676 | -8/Scraptown | Found DRS Beacon 4711 | -8/Scraptown | Visited Modified Component R&D 5226 | -8/Scraptown | Found Scrap Suit 5230 | -8/Scraptown | Found Scrap Suit 5270 | -8/Scraptown | Discovered new exit (range 3) 5471 | -8/Scraptown | Visited Sword Containment 6835 | -8/Scraptown | Met Optimus 6835 | -8/Scraptown | Accepted into 0bPrime 6920 | -8/Scraptown | Entered Factory 6920 | -6/Factory | Evolved 8 slots: Power x1, Propulsion x2, Utility x5 6928 | -6/Factory | Attached Rainbow Chip, gained temporary slots: Power, Propulsion, Utility, Weapon 7127 | -6/Factory | Identified exit to Lower Caves 7148 | -6/Factory | Loaded intel: 8 recycling unit locations 7203 | -6/Factory | Garrison activated, responded to threat 7731 | -6/Factory | Build established: Scavenger-Mutant 7997 | -6/Factory | Learned location of Protoforge (-2) 8169 | -6/Factory | Core integrity fell below 50% 8766 | -6/Factory | Cargo convoy interrupted 8827 | -6/Factory | Core integrity fell below 20% 8869 | -6/Factory | Released all parts (9) 8876 | -6/Factory | Destroyed by X-72 Disruptor with Improved Arc Projector Last Messages --------------- 08868_ Carbon-fiber Leg destroyed. 08869_ System corrupted: Lgt. Ion Engine rejected. 08869_ Released Insulated Plating. 08869_ Released Imp. VSS Leg. 08869_ Released Imp. Cooling System. 08869_ Released Adv. ECM Suite. 08869_ Released Adv. Signal Interpreter. 08869_ Released Companion Sword. Companion Sword: "Give me another chance!" 08869_ Released Lrg. Storage Unit. 08869_ Imp. System Shield crushed and broken. 08869_ Transmission Jammer crushed and broken. 08869_ CPS Tube crushed and broken. 08869_ Hacking Suite crushed and broken. 08869_ Released Carbon-fiber Leg. 08869_ Carbon-fiber Leg crushed and broken. 08869_ Released Imp. VSS Leg. 08869_ Imp. VSS Leg crushed and broken. 08870_ K-01 Serf cleans the TF Node. Map ----- +----------------------------------------------------+ | "" #!""" # | ## #?????????????????# #???? | | "" # %!= /#! ! ## #???????#???????### ###?? | | "" ##+######## ## ###?????????????# #?# | | ##%# =%########### ############### " #?# | | "" ## # %+ % ! = " %= "T #?? | | "" ##%# *########### ### ########### ##? | | "" + /% #?????????##|##?#!#?????????# #?? | | #% # #??????????#=##?# #?#????#??## #### | | #### # #??????????#/%###+############ # | | ########??????????#!### # + | | #######????????????????##g#?# # # | | #??????????????????????##x#?# # # | | #??????????????????????##*#?# ! # # | | #???????????????????????#=#?# [ # # | | #???????????????????????#!#?# ! # # | | ????????????????????????#!#?# # # | | ????????????????????????#!#?# # # | | ????????????????????????#]#?# # # | | ???????????????????????## #?# # # | | ???????????????????????## #?# + # | | ???????????????????????## #?###########+### #### | | ????????????????????????# #?????# ]= !*!!# #??? | | ????????????????????????# #?????# ! =%=![#=% #?#? | | ????????????????????????# #?????# *=|%#== ##?? | | ????????????????????????# #?????# """"""" +![ "### | | ????????????????????????#@#?????# """""""[#= # | | ????????????????????????# #?????# """""""%# # "" | | ????????????????????????# #?????# """""""!# # "" | | ????????????????????????# #?????# # # "" | | ????????????????????????# #?????########### + "" | | ???????????????????######+####?#######????# # "" | | ???????????????????# #?# #????# # "" | | ???????????????????# #?# ###### # "" | | ???????????????????# """ """ #?# # | | ???????????????????# """ """ #?# ###### "### | | ???????????????????# """ """ #?# #????# ##?? | | ???????????????????# #####+#####??# #??? | | ???????????????????# " #??# #??? | | ???????????????????# / # #??# ##?? | | ???????????????????########### = #??# "### | | ?????????????????????????????# #??#* # | | ?????????????????????????????# / #??# ! # | | ?????????????????????????????# #??# # = | | ?????????????????????????????# #??# # | | ?????????????????????????????# #??# + | | ?????????????????????????????#########+#??# # | | ??????????????????????????????????????????# # "T | | ????????????????????????????????????????? # "" | | ??????????????????????????????????????? #### | | ?????????????????????????????????????? #??? | +----------------------------------------------------+ Best States ------------- Heat Dissipation 37 Energy Generation 40 Energy Capacity 280 Matter Stores 300 Matter Capacity 300 Sight Range 16 Robot Scan Range 15 Terrain Scan Range 16 Terrain Scan Density 10 ECM Strength 2 Jamming Range 12 Armor Coverage 825 Resistance: EM 20 Propulsion Shielding 33 Evasion (%) 63 Melee Accuracy 13 Recoil Reduction 2 Item Schematics ----------------- Hcp. Storage Unit | -10/Materials | Hacked Microactuators | -6/Factory | Hacked Robot Schematics ------------------ None Fabricated ------------ Nothing Repaired ---------- Nothing Alien Tech Used ----------------- None Achievements -------------- None Challenges ------------ None Game ------ Seed GravjetBoreImmobilizer Manual? 1 Play Time 01:15:02 Cumulative 207.1 hours Start 2025.05.16 @ 16:20:32 End 2025.05.16 @ 18:06:22 Sessions 1 Manual Loads 0 Difficulty Rogue Special Mode None Game No. 115 Rogue 107 Adventurer 8 Explorer 0 Win Type - Total 6 Types 2/0/2/1/0/0/0/0/0/1 Lore% 79 Gallery% 74 Achievement% 62 Wizard Run 0 Options --------- Layout 2 ASCII 0 Keyboard 1 Movement Numpad Keybinds 1 Fullscreen 1 Font 48/Smallcaps Map View 50x44 Zoom Use 0% Tactical HUD 1 Map Filters NONE Filters NONE Steam 1 RUN: 6cfdedbd-4a00-480c-9491-9f4c85d3f2bc